[Event "Blixt-SM 2021"]
[Site "Elite Hotel Marina Plaza, Kungstorget 6, Helsingborg, Sweden"]
[Date "2021.11.14"]
[Round "2.4"]
[White "Nord, Alexander"]
[Black "Abedinov, Adnan"]
[Result "0-1"]
[TimeControl "3 minutes + 2 seconds per move."]
[WhiteFideId "1738135"]
[BlackFideId "1703544"]
[WhiteElo "1909"]
[BlackElo "2170"]

1. d4 {[%clk 00:03:02]} g6 {[%clk 00:03:03]} {[%emt 00:00:02]} 2. Nf3 {[%emt
00:00:02]} Bg7 3. g3 {[%clk 00:03:04]} {[%emt 00:00:01]} f5 {[%clk 00:03:06]} 4.
Bg2 {[%clk 00:03:05]} Nh6 {[%clk 00:03:07]} 5. O-O {[%emt 00:00:01]} Nf7 6. c4
{[%clk 00:03:04]} {[%emt 00:00:03]} O-O {[%clk 00:03:09]} {[%emt 00:00:02]} 7.
Nc3 {[%clk 00:03:04]} c6 {[%clk 00:03:10]} 8. e4 {[%clk 00:03:02]} {[%emt
00:00:05]} d6 {[%clk 00:03:11]} {[%emt 00:00:01]} 9. Re1 {[%clk 00:02:56]}
{[%emt 00:00:08]} e5 {[%clk 00:03:12]} 10. b3 {[%clk 00:02:41]} {[%emt
00:00:17]} Qf6 {[%clk 00:03:10]} {[%emt 00:00:04]} 11. dxe5 {[%clk 00:02:34]}
{[%emt 00:00:10]} dxe5 {[%clk 00:03:11]} 12. Ba3 {[%clk 00:02:28]} {[%emt
00:00:07]} Re8 {[%clk 00:02:48]} {[%emt 00:00:25]} 13. Qe2 {[%clk 00:02:27]}
{[%emt 00:00:03]} f4 {[%clk 00:02:43]} {[%emt 00:00:07]} 14. Rad1 {[%clk
00:02:07]} {[%emt 00:00:22]} Na6 {[%clk 00:02:28]} {[%emt 00:00:18]} 15. Nd2
{[%clk 00:01:53]} {[%emt 00:00:15]} h5 {[%clk 00:02:16]} {[%emt 00:00:14]} 16.
c5 {[%clk 00:01:46]} {[%emt 00:00:09]} Ng5 {[%clk 00:01:25]} {[%emt 00:00:53]}
17. f3 {[%clk 00:01:10]} {[%emt 00:00:38]} Ne6 {[%clk 00:01:13]} {[%emt
00:00:15]} 18. Nc4 {[%clk 00:00:53]} {[%emt 00:00:18]} Nd4 {[%clk 00:01:13]}
{[%emt 00:00:02]} 19. Rxd4 {[%clk 00:00:41]} {[%emt 00:00:14]} exd4 {[%clk
00:01:14]} 20. Nd1 {[%clk 00:00:42]} {[%emt 00:00:02]} d3 {[%clk 00:00:42]}
{[%emt 00:00:34]} 21. Qxd3 {[%clk 00:00:40]} {[%emt 00:00:05]} Qd4+ {[%clk
00:00:44]} 22. Qxd4 {[%emt 00:00:04]} Bxd4+ 23. Kf1 {[%clk 00:00:32]} {[%emt
00:00:07]} fxg3 {[%clk 00:00:40]} {[%emt 00:00:08]} 24. hxg3 {[%clk 00:00:29]}
{[%emt 00:00:04]} Bxc5 {[%clk 00:00:30]} {[%emt 00:00:12]} 25. Bxc5 Nxc5 {[%clk
00:00:31]} 26. Nc3 {[%clk 00:00:14]} {[%emt 00:00:07]} Be6 {[%clk 00:00:32]}
{[%emt 00:00:01]} 27. Nd6 {[%clk 00:00:14]} {[%emt 00:00:02]} Re7 {[%clk
00:00:32]} {[%emt 00:00:02]} 28. f4 {[%clk 00:00:11]} {[%emt 00:00:05]} Rd8
{[%clk 00:00:28]} {[%emt 00:00:06]} 29. e5 {[%clk 00:00:12]} {[%emt 00:00:01]}
Bg4 {[%clk 00:00:15]} {[%emt 00:00:15]} 30. Re3 {[%clk 00:00:08]} {[%emt
00:00:05]} Rxd6 {[%clk 00:00:12]} {[%emt 00:00:06]} 31. b4 {[%clk 00:00:06]}
{[%emt 00:00:05]} Rd3 {[%clk 00:00:11]} {[%emt 00:00:02]} 32. Rxd3 {[%clk
00:00:04]} {[%emt 00:00:04]} Nxd3 {[%clk 00:00:13]} 33. Ne4 {[%clk 00:00:05]}
Nxb4 {[%clk 00:00:11]} {[%emt 00:00:05]} 0-1

[Event "Blixt-SM 2021"]
[Site "Elite Hotel Marina Plaza, Kungstorget 6, Helsingborg, Sweden"]
[Date "2021.11.14"]
[Round "4.2"]
[White "Olsson, Linus"]
[Black "Nilsson, Patrik"]
[Result "0-1"]
[TimeControl "3 minutes + 2 seconds per move."]
[WhiteTitle "FM"]
[WhiteFideId "1706098"]
[BlackFideId "1708171"]
[WhiteElo "2204"]
[BlackElo "2143"]

1. d4 {[%clk 00:03:02]} f5 {[%clk 00:03:03]} {[%emt 00:00:02]} 2. g3 {[%clk
00:03:00]} {[%emt 00:00:04]} Nf6 {[%clk 00:03:04]} 3. Bg2 {[%clk 00:03:01]}
{[%emt 00:00:01]} g6 {[%clk 00:03:04]} {[%emt 00:00:02]} 4. c3 {[%clk
00:02:59]} {[%emt 00:00:04]} d5 {[%clk 00:03:02]} {[%emt 00:00:04]} 5. f4
{[%clk 00:02:49]} {[%emt 00:00:12]} c6 {[%clk 00:03:00]} {[%emt 00:00:05]} 6.
Nf3 {[%clk 00:02:49]} {[%emt 00:00:01]} Be6 {[%clk 00:02:58]} {[%emt 00:00:04]}
7. O-O {[%clk 00:02:45]} {[%emt 00:00:06]} Nbd7 {[%clk 00:02:58]} {[%emt
00:00:02]} 8. b3 {[%clk 00:02:35]} {[%emt 00:00:12]} Ne4 {[%clk 00:02:54]}
{[%emt 00:00:06]} 9. a4 {[%clk 00:02:17]} {[%emt 00:00:21]} a5 {[%clk
00:02:48]} {[%emt 00:00:07]} 10. Ba3 {[%clk 00:02:16]} {[%emt 00:00:04]} Bg7
{[%clk 00:02:31]} {[%emt 00:00:19]} 11. Ra2 {[%clk 00:02:12]} {[%emt 00:00:05]}
O-O {[%clk 00:02:28]} {[%emt 00:00:04]} 12. Rc2 {[%clk 00:02:13]} {[%emt
00:00:02]} b5 {[%clk 00:02:16]} {[%emt 00:00:15]} 13. e3 {[%clk 00:01:59]}
{[%emt 00:00:16]} bxa4 {[%clk 00:02:03]} {[%emt 00:00:15]} 14. bxa4 {[%clk
00:01:59]} Nb6 {[%clk 00:02:04]} {[%emt 00:00:01]} 15. Ra2 {[%clk 00:01:17]}
{[%emt 00:00:44]} Nc4 {[%clk 00:02:04]} {[%emt 00:00:02]} 16. Re1 {[%clk
00:01:03]} {[%emt 00:00:15]} Rb8 {[%clk 00:01:54]} {[%emt 00:00:12]} 17. Bf1
{[%clk 00:00:28]} {[%emt 00:00:37]} Nxa3 {[%clk 00:01:50]} {[%emt 00:00:06]} 18.
Rxa3 {[%clk 00:00:26]} {[%emt 00:00:05]} Qd6 {[%clk 00:01:44]} {[%emt
00:00:09]} 19. Rb3 {[%clk 00:00:18]} {[%emt 00:00:10]} Rxb3 {[%clk 00:01:44]}
{[%emt 00:00:02]} 20. Qxb3 {[%clk 00:00:19]} {[%emt 00:00:01]} Rb8 {[%clk
00:01:45]} 21. Qc2 {[%clk 00:00:17]} {[%emt 00:00:03]} c5 {[%clk 00:01:13]}
{[%emt 00:00:34]} 22. Bb5 {[%clk 00:00:16]} {[%emt 00:00:03]} Bd7 {[%clk
00:01:11]} {[%emt 00:00:04]} 23. c4 {[%clk 00:00:14]} {[%emt 00:00:04]} Bxb5
{[%clk 00:00:48]} {[%emt 00:00:25]} 24. axb5 {[%clk 00:00:15]} {[%emt
00:00:01]} cxd4 {[%clk 00:00:45]} {[%emt 00:00:05]} 25. exd4 {[%clk 00:00:15]}
{[%emt 00:00:02]} Qb4 {[%clk 00:00:36]} {[%emt 00:00:12]} 26. cxd5 {[%clk
00:00:09]} {[%emt 00:00:07]} Qxb5 {[%clk 00:00:32]} {[%emt 00:00:06]} 27. Nbd2
{[%clk 00:00:08]} {[%emt 00:00:04]} Qxd5 {[%clk 00:00:22]} {[%emt 00:00:11]} 28.
Nxe4 {[%clk 00:00:07]} {[%emt 00:00:03]} fxe4 {[%clk 00:00:23]} 29. Qxe4 {[%clk
00:00:08]} {[%emt 00:00:01]} Qxe4 {[%clk 00:00:17]} {[%emt 00:00:09]} 30. Rxe4
{[%clk 00:00:09]} Bf6 {[%clk 00:00:15]} {[%emt 00:00:04]} 31. Re2 {[%clk
00:00:06]} {[%emt 00:00:05]} Rb3 {[%clk 00:00:13]} {[%emt 00:00:04]} 32. Kf2
{[%clk 00:00:06]} {[%emt 00:00:01]} a4 {[%clk 00:00:14]} 33. Ne5 {[%clk
00:00:05]} {[%emt 00:00:03]} a3 {[%clk 00:00:14]} {[%emt 00:00:02]} 34. Nc4
{[%clk 00:00:06]} Bxd4+ {[%clk 00:00:14]} {[%emt 00:00:02]} 35. Ke1 {[%clk
00:00:07]} Bc3+ {[%clk 00:00:14]} {[%emt 00:00:03]} 36. Kd1 {[%clk 00:00:08]}
Bf6 {[%clk 00:00:13]} {[%emt 00:00:04]} 37. Ne5 {[%clk 00:00:08]} {[%emt
00:00:02]} Bxe5 {[%clk 00:00:12]} {[%emt 00:00:02]} 38. fxe5 {[%clk 00:00:09]}
Kf7 {[%clk 00:00:12]} {[%emt 00:00:03]} 39. Kc1 {[%clk 00:00:09]} {[%emt
00:00:02]} Ke6 {[%clk 00:00:13]} 40. Re4 {[%clk 00:00:08]} {[%emt 00:00:03]}
Rb2 {[%clk 00:00:13]} {[%emt 00:00:01]} 41. Ra4 {[%clk 00:00:09]} {[%emt
00:00:01]} Rxh2 {[%clk 00:00:14]} {[%emt 00:00:02]} 42. Rxa3 {[%clk 00:00:09]}
{[%emt 00:00:02]} Kxe5 {[%clk 00:00:15]} 43. Re3+ {[%clk 00:00:10]} Kf6 {[%clk
00:00:16]} 44. Kd1 {[%clk 00:00:11]} e5 {[%clk 00:00:17]} 45. Ke1 {[%clk
00:00:12]} Kf5 {[%clk 00:00:19]} {[%emt 00:00:01]} 46. Kf1 {[%clk 00:00:13]}
Ra2 {[%clk 00:00:19]} {[%emt 00:00:10]} 47. Rf3+ {[%clk 00:00:14]} Kg4 {[%clk
00:00:20]} 48. Re3 {[%clk 00:00:15]} Ra5 {[%clk 00:00:20]} {[%emt 00:00:02]} 49.
Kg2 {[%clk 00:00:16]} {[%emt 00:00:01]} h5 {[%clk 00:00:21]} {[%emt 00:00:02]}
50. Re4+ {[%clk 00:00:16]} {[%emt 00:00:01]} Kf5 {[%clk 00:00:22]} {[%emt
00:00:02]} 51. Re3 {[%clk 00:00:17]} e4 {[%clk 00:00:23]} 52. Re2 {[%clk
00:00:17]} {[%emt 00:00:02]} Ra3 {[%clk 00:00:23]} {[%emt 00:00:02]} 53. Rf2+
{[%clk 00:00:18]} {[%emt 00:00:01]} Kg5 {[%clk 00:00:19]} {[%emt 00:00:06]} 54.
Rf8 {[%clk 00:00:18]} {[%emt 00:00:02]} Ra2+ {[%clk 00:00:18]} {[%emt
00:00:03]} 55. Kh3 {[%clk 00:00:18]} {[%emt 00:00:02]} e3 {[%clk 00:00:19]}
{[%emt 00:00:01]} 56. Re8 {[%clk 00:00:18]} {[%emt 00:00:03]} e2 {[%clk
00:00:20]} 57. Re5+ {[%clk 00:00:18]} {[%emt 00:00:01]} Kf6 {[%clk 00:00:20]}
{[%emt 00:00:02]} 58. Re3 {[%clk 00:00:18]} {[%emt 00:00:02]} g5 {[%clk
00:00:18]} {[%emt 00:00:04]} 59. Re8 {[%clk 00:00:18]} {[%emt 00:00:02]} Kf5
{[%clk 00:00:17]} {[%emt 00:00:04]} 60. Re7 {[%clk 00:00:18]} {[%emt 00:00:01]}
g4+ {[%clk 00:00:12]} {[%emt 00:00:06]} 61. Kh4 {[%clk 00:00:18]} {[%emt
00:00:02]} e1=Q {[%clk 00:00:11]} {[%emt 00:00:03]} 62. Rf7+ {[%clk 00:00:04]}
{[%emt 00:00:15]} Kg6 {[%clk 00:00:11]} {[%emt 00:00:03]} 63. Rf2 {[%clk
00:00:03]} {[%emt 00:00:03]} Qe7+ {[%clk 00:00:11]} {[%emt 00:00:03]} 64. Rf6+
{[%clk 00:00:03]} {[%emt 00:00:02]} Qxf6# {[%clk 00:00:12]} {[%emt 00:00:01]}
0-1

[Event "Blixt-SM 2021"]
[Site "Elite Hotel Marina Plaza, Kungstorget 6, Helsingborg, Sweden"]
[Date "2021.11.14"]
[Round "5.9"]
[White "Muhamed, Hoger"]
[Black "Terochin, Piotr"]
[Result "0-1"]
[TimeControl "3 minutes + 2 seconds per move."]
[WhiteFideId "1742841"]
[BlackFideId "1113682"]
[WhiteElo "1838"]
[BlackElo "1779"]

1. e4 {[%clk 00:03:03]} c5 {[%clk 00:03:03]} {[%emt 00:00:02]} 2. Nf3 {[%clk
00:03:05]} d6 {[%clk 00:03:04]} 3. d4 {[%clk 00:03:06]} cxd4 {[%clk 00:03:05]}
{[%emt 00:00:02]} 4. Nxd4 {[%clk 00:03:07]} Nf6 {[%clk 00:03:06]} 5. Nc3 {[%clk
00:03:08]} a6 {[%clk 00:03:07]} {[%emt 00:00:01]} 6. Be3 {[%clk 00:03:09]} e5
{[%clk 00:03:05]} {[%emt 00:00:03]} 7. Nb3 {[%clk 00:03:10]} {[%emt 00:00:01]}
Be6 {[%clk 00:03:05]} {[%emt 00:00:03]} 8. f3 {[%clk 00:03:11]} {[%emt
00:00:01]} d5 {[%clk 00:02:38]} {[%emt 00:00:29]} 9. exd5 {[%clk 00:03:11]}
{[%emt 00:00:02]} Nxd5 {[%clk 00:02:39]} {[%emt 00:00:02]} 10. Nxd5 {[%clk
00:03:11]} Qxd5 {[%clk 00:02:38]} {[%emt 00:00:02]} 11. Qxd5 {[%clk 00:03:11]}
{[%emt 00:00:02]} Bxd5 {[%clk 00:02:40]} {[%emt 00:00:01]} 12. Bd3 {[%clk
00:03:10]} {[%emt 00:00:03]} Bb4+ {[%clk 00:02:22]} {[%emt 00:00:20]} 13. c3
{[%clk 00:03:10]} {[%emt 00:00:02]} Be7 {[%clk 00:02:22]} {[%emt 00:00:02]} 14.
O-O-O {[%clk 00:03:11]} {[%emt 00:00:02]} Bc6 {[%clk 00:02:05]} {[%emt
00:00:20]} 15. Rhe1 {[%clk 00:03:03]} {[%emt 00:00:09]} O-O {[%clk 00:02:04]}
{[%emt 00:00:03]} 16. Nc5 {[%clk 00:02:59]} {[%emt 00:00:06]} g6 {[%clk
00:01:14]} {[%emt 00:00:52]} 17. Bh6 {[%clk 00:02:58]} {[%emt 00:00:03]} Rd8
{[%clk 00:01:12]} {[%emt 00:00:04]} 18. Rxe5 {[%clk 00:02:54]} {[%emt
00:00:06]} Bf8 {[%clk 00:01:02]} {[%emt 00:00:12]} 19. Bxf8 {[%clk 00:02:52]}
{[%emt 00:00:04]} Kxf8 {[%clk 00:01:03]} 20. Be4 {[%clk 00:02:47]} {[%emt
00:00:07]} Rxd1+ {[%clk 00:01:00]} {[%emt 00:00:05]} 21. Kxd1 {[%clk 00:02:47]}
{[%emt 00:00:01]} Bxe4 {[%clk 00:01:01]} {[%emt 00:00:01]} 22. Rxe4 {[%clk
00:02:28]} {[%emt 00:00:20]} Nc6 {[%clk 00:00:53]} {[%emt 00:00:11]} 23. Kc2
{[%clk 00:02:15]} {[%emt 00:00:14]} b6 {[%clk 00:00:53]} {[%emt 00:00:04]} 24.
Nd7+ {[%clk 00:02:14]} {[%emt 00:00:02]} Kg7 {[%clk 00:00:54]} {[%emt
00:00:01]} 25. Nxb6 {[%clk 00:02:15]} {[%emt 00:00:01]} Rb8 {[%clk 00:00:53]}
{[%emt 00:00:02]} 26. Nc4 {[%clk 00:02:09]} {[%emt 00:00:07]} Rd8 {[%clk
00:00:53]} {[%emt 00:00:03]} 27. Ne5 {[%clk 00:02:05]} {[%emt 00:00:06]} Ne7
{[%clk 00:00:36]} {[%emt 00:00:19]} 28. Ra4 {[%clk 00:01:59]} {[%emt 00:00:08]}
Rd6 {[%clk 00:00:35]} {[%emt 00:00:03]} 29. Nd3 {[%clk 00:01:49]} {[%emt
00:00:12]} Nf5 {[%clk 00:00:34]} {[%emt 00:00:03]} 30. Nc5 {[%clk 00:01:30]}
{[%emt 00:00:20]} Ne3+ {[%clk 00:00:27]} {[%emt 00:00:09]} 31. Kb3 {[%clk
00:01:31]} {[%emt 00:00:01]} Rb6+ {[%clk 00:00:26]} {[%emt 00:00:03]} 32. Rb4
{[%clk 00:01:31]} {[%emt 00:00:01]} Rc6 {[%clk 00:00:27]} 33. Nd7 {[%clk
00:01:13]} {[%emt 00:00:19]} a5 {[%clk 00:00:26]} {[%emt 00:00:04]} 34. Rb7
{[%clk 00:01:11]} {[%emt 00:00:03]} Ra6 {[%clk 00:00:14]} {[%emt 00:00:15]} 35.
a4 {[%clk 00:01:04]} {[%emt 00:00:08]} Nxg2 {[%clk 00:00:14]} {[%emt 00:00:02]}
36. Ne5 {[%clk 00:01:05]} Kf6 {[%clk 00:00:15]} {[%emt 00:00:01]} 37. Nxf7
{[%clk 00:01:05]} {[%emt 00:00:03]} Nh4 {[%clk 00:00:16]} {[%emt 00:00:01]} 38.
Nh6 {[%clk 00:01:01]} {[%emt 00:00:06]} Nxf3 {[%clk 00:00:16]} {[%emt
00:00:02]} 39. Rxh7 {[%clk 00:00:53]} {[%emt 00:00:09]} Rb6+ {[%clk 00:00:18]}
{[%emt 00:00:01]} 40. Ka3 {[%clk 00:00:51]} {[%emt 00:00:04]} Ng5 {[%clk
00:00:18]} {[%emt 00:00:02]} 41. Ra7 {[%clk 00:00:43]} {[%emt 00:00:09]} Nf3
{[%clk 00:00:18]} {[%emt 00:00:02]} 42. Rxa5 {[%clk 00:00:40]} {[%emt
00:00:05]} Nxh2 {[%clk 00:00:19]} {[%emt 00:00:02]} 43. Rb5 {[%clk 00:00:36]}
{[%emt 00:00:07]} Ra6 {[%clk 00:00:20]} 44. Ng8+ {[%clk 00:00:33]} {[%emt
00:00:05]} Kg7 {[%clk 00:00:21]} 45. Ne7 {[%clk 00:00:34]} Nf3 {[%emt
00:00:07]} 46. Nd5 {[%clk 00:00:29]} {[%emt 00:00:04]} g5 {[%clk 00:00:21]}
{[%emt 00:00:02]} 47. Rb7+ {[%clk 00:00:30]} {[%emt 00:00:02]} Kf8 {[%clk
00:00:13]} {[%emt 00:00:10]} 48. Nc7 {[%clk 00:00:28]} {[%emt 00:00:04]} Rg6
{[%clk 00:00:11]} {[%emt 00:00:03]} 49. a5 {[%clk 00:00:27]} {[%emt 00:00:03]}
Ne5 {[%clk 00:00:06]} {[%emt 00:00:08]} 50. a6 {[%clk 00:00:26]} {[%emt
00:00:02]} Nc4+ {[%clk 00:00:08]} 51. Kb3 {[%clk 00:00:26]} {[%emt 00:00:02]}
Nb6 {[%clk 00:00:07]} {[%emt 00:00:03]} 52. a7 {[%clk 00:00:26]} {[%emt
00:00:03]} g4 {[%clk 00:00:08]} 53. Nd5 {[%clk 00:00:16]} {[%emt 00:00:12]} g3
{[%clk 00:00:03]} {[%emt 00:00:07]} 54. Nxb6 {[%clk 00:00:16]} {[%emt
00:00:02]} Rxb6+ 55. Rxb6 {[%clk 00:00:17]} g2 {[%clk 00:00:05]} 56. Rb7 {[%clk
00:00:17]} {[%emt 00:00:02]} 0-1

[Event "Blixt-SM 2021"]
[Site "Elite Hotel Marina Plaza, Kungstorget 6, Helsingborg, Sweden"]
[Date "2021.11.14"]
[Round "7.7"]
[White "Troedsson, Anton"]
[Black "Nord, Alexander"]
[Result "0-1"]
[TimeControl "3 minutes + 2 seconds per move."]
[WhiteFideId "1746006"]
[BlackFideId "1738135"]
[WhiteElo "2104"]
[BlackElo "1909"]

1. Nf3 {[%clk 00:03:03]} Nf6 {[%clk 00:03:03]} {[%emt 00:00:01]} 2. b3 {[%clk
00:03:04]} g6 {[%clk 00:03:04]} {[%emt 00:00:02]} 3. Bb2 {[%clk 00:03:06]} Bg7
{[%clk 00:03:04]} {[%emt 00:00:02]} 4. g3 {[%clk 00:03:07]} {[%emt 00:00:01]}
b6 {[%clk 00:03:00]} {[%emt 00:00:06]} 5. Bg2 {[%clk 00:03:07]} {[%emt
00:00:02]} Bb7 {[%clk 00:03:01]} {[%emt 00:00:01]} 6. O-O {[%clk 00:03:07]}
{[%emt 00:00:02]} O-O {[%clk 00:03:01]} {[%emt 00:00:02]} 7. d4 {[%clk
00:03:07]} {[%emt 00:00:01]} c5 {[%clk 00:02:53]} {[%emt 00:00:10]} 8. c4
{[%clk 00:03:07]} {[%emt 00:00:03]} cxd4 {[%clk 00:02:53]} {[%emt 00:00:02]} 9.
Nxd4 {[%clk 00:03:07]} {[%emt 00:00:01]} Bxg2 {[%clk 00:02:53]} {[%emt
00:00:02]} 10. Kxg2 {[%clk 00:03:08]} Qc7 {[%clk 00:02:34]} {[%emt 00:00:21]}
11. e3 {[%clk 00:03:09]} Nc6 {[%clk 00:02:32]} {[%emt 00:00:04]} 12. Nc3 {[%clk
00:03:05]} {[%emt 00:00:06]} a6 {[%clk 00:02:25]} {[%emt 00:00:10]} 13. Rc1
{[%clk 00:03:06]} {[%emt 00:00:01]} Rac8 {[%clk 00:02:21]} {[%emt 00:00:06]} 14.
Nd5 {[%clk 00:03:05]} {[%emt 00:00:02]} Qb7 {[%clk 00:02:00]} {[%emt 00:00:23]}
15. Qf3 {[%clk 00:02:43]} {[%emt 00:00:25]} Nxd5 {[%clk 00:01:47]} {[%emt
00:00:15]} 16. Nxc6 {[%clk 00:02:05]} {[%emt 00:00:40]} dxc6 {[%clk 00:01:26]}
{[%emt 00:00:22]} 17. Bxg7 {[%clk 00:02:05]} {[%emt 00:00:02]} Kxg7 {[%clk
00:01:27]} {[%emt 00:00:02]} 18. cxd5 {[%clk 00:02:04]} {[%emt 00:00:03]} cxd5
{[%clk 00:01:27]} {[%emt 00:00:01]} 19. Rfd1 {[%clk 00:02:00]} {[%emt
00:00:06]} e6 {[%clk 00:01:18]} {[%emt 00:00:11]} 20. Qf4 {[%clk 00:02:01]}
{[%emt 00:00:02]} Rxc1 {[%clk 00:00:57]} {[%emt 00:00:23]} 21. Rxc1 {[%clk
00:02:01]} {[%emt 00:00:02]} Rc8 {[%clk 00:00:57]} {[%emt 00:00:02]} 22. Qd4+
{[%clk 00:01:48]} {[%emt 00:00:14]} Kg8 {[%clk 00:00:57]} {[%emt 00:00:03]} 23.
Rxc8+ {[%clk 00:01:49]} {[%emt 00:00:01]} Qxc8 {[%clk 00:00:57]} {[%emt
00:00:02]} 24. Qxb6 {[%clk 00:01:49]} {[%emt 00:00:01]} Qa8 {[%clk 00:00:49]}
{[%emt 00:00:10]} 25. Kg1 {[%clk 00:01:44]} {[%emt 00:00:07]} h5 {[%clk
00:00:45]} {[%emt 00:00:05]} 26. h4 {[%clk 00:01:45]} {[%emt 00:00:02]} a5
{[%clk 00:00:20]} {[%emt 00:00:27]} 27. a3 {[%clk 00:01:40]} {[%emt 00:00:07]}
Kg7 {[%clk 00:00:19]} {[%emt 00:00:03]} 28. a4 {[%clk 00:01:31]} {[%emt
00:00:10]} e5 {[%clk 00:00:17]} {[%emt 00:00:04]} 29. Qc7 {[%clk 00:01:31]}
{[%emt 00:00:02]} e4 {[%emt 00:01:01]} 30. Qc5 {[%emt 00:00:09]} Qd8 {[%emt
00:00:03]} 31. b4 {[%emt 00:00:18]} axb4 32. Qxb4 Qc8 {[%emt 00:00:04]} 33.
Qb2+ {[%emt 00:00:02]} Kh7 {[%emt 00:00:03]} 34. a5 {[%emt 00:00:01]} Qa6
{[%emt 00:00:04]} 35. Qc3 {[%emt 00:00:04]} Qe2 {[%emt 00:00:03]} 36. Qf6
{[%emt 00:00:08]} Qe1+ {[%emt 00:00:03]} 37. Kg2 Qxa5 {[%emt 00:00:02]} 38.
Qxf7+ Kh6 {[%emt 00:00:02]} 39. Qg8 {[%emt 00:00:04]} Qc7 {[%emt 00:00:03]} 40.
Qxd5 {[%emt 00:00:05]} Qe7 41. Qg8 {[%emt 00:00:04]} Qf6 {[%emt 00:00:02]} 42.
Qc4 {[%emt 00:00:06]} Qf3+ {[%emt 00:00:02]} 43. Kg1 Qd1+ {[%emt 00:00:02]} 44.
Qf1 Qf3 {[%emt 00:00:02]} 45. Qb1 {[%emt 00:00:02]} Kg7 {[%emt 00:00:05]} 46.
Qb2+ Kf7 {[%emt 00:00:02]} 47. Qb3+ {[%emt 00:00:01]} Kf6 {[%emt 00:00:02]} 48.
Qb6+ {[%emt 00:00:01]} Kf5 {[%emt 00:00:02]} 49. Qc5+ {[%emt 00:00:02]} Kf6
{[%emt 00:00:03]} 50. Qf8+ {[%emt 00:00:02]} Ke5 {[%emt 00:00:02]} 51. Qg7+
{[%emt 00:00:05]} Kf5 {[%emt 00:00:03]} 52. Qd4 {[%emt 00:00:15]} Ke6 {[%emt
00:00:03]} 53. Qa1 {[%emt 00:00:07]} Qe2 {[%emt 00:00:03]} 54. Qf1 {[%emt
00:00:03]} Qf3 {[%emt 00:00:01]} 55. Qg2 {[%emt 00:00:02]} Qd1+ {[%emt
00:00:02]} 56. Kh2 Qd3 {[%emt 00:00:03]} 57. Qh3+ {[%emt 00:00:05]} Kf6 {[%emt
00:00:02]} 58. Qc8 {[%emt 00:00:04]} Qf1 {[%emt 00:00:03]} 59. Qc6+ {[%emt
00:00:05]} Kf5 {[%emt 00:00:02]} 60. Qd5+ {[%emt 00:00:04]} Kf6 61. Qd6+ {[%emt
00:00:06]} Kg7 {[%emt 00:00:03]} 62. Qf4 Kh7 {[%emt 00:00:04]} 63. Qc7+ {[%emt
00:00:32]} Kg8 {[%emt 00:00:01]} 64. Qc2 {[%emt 00:00:06]} Kg7 {[%emt
00:00:02]} 65. Qc7+ {[%emt 00:00:26]} Kg8 66. Qd8+ {[%emt 00:00:03]} Kg7 {[%emt
00:00:01]} 67. Qe7+ Kg8 {[%emt 00:00:01]} 68. Qf6 {[%emt 00:00:06]} Kh7 {[%emt
00:00:02]} 69. Qf7+ {[%emt 00:00:08]} Kh8 0-1